[Event "XVI Memorial Lezcano Montalvo 2024"]
[Site "Gran Canaria"]
[Date "2024.03.30"]
[Round "8.40"]
[White "Perez Celis, Alba"]
[Black "Garcia Almeida, Valeria"]
[Result "1-0"]
[ECO "B31"]
[WhiteElo "1854"]
[BlackElo "1682"]
[Annotator "NA RC COMBH"]
[PlyCount "83"]
[EventDate "2024.03.23"]
[EventType "swiss"]
[EventCountry "ESP"]
[SourceTitle "playchess.com"]
[Source "ChessBase"]
[SourceQuality "1"]
[TimeControl "5400+30"]

1. e4 {[%emt 0:08:42]} c5 {[%emt 0:00:42]} 2. Nf3 {[%emt 0:00:05]} Nc6 {[%emt 0:00:58]} 3. Bb5 {[%emt 0:00:06]} g6 {[%emt 0:01:19]} 4. O-O {[%emt 0:00:14]} Bg7 {[%emt 0:00:42]} 5. Re1 {[%emt 0:00:05]} e5 {[%emt 0:01:36]} 6. Bxc6 {[%emt 0:00:15]} bxc6 {[%emt 0:00:49]} 7. c3 {[%emt 0:00:21]} Ne7 {[%emt 0:05:11]} 8. d4 {[%emt 0:00:10]} cxd4 {[%emt 0:00:41]} 9. cxd4 {[%emt 0:00:07]} exd4 {[%emt 0:01:07]} 10. Nxd4 {[%emt 0:00:07]} O-O {[%emt 0:00:41]} 11. Nc3 {[%emt 0:00:05]} Qb6 {[%emt 0:06:02]} 12. Nb3 {[%emt 0:00:56]} Bxc3 {[%emt 0:09:39]} 13. bxc3 {[%emt 0:00:19]} Qc7 {[%emt 0:04:23]} 14. Bh6 {[%emt 0:02:16]} f6 {[%emt 0:08:23]} 15. Bxf8 {[%emt 0:01:30]} Kxf8 {[%emt 0:00:07]} 16. Qd4 {[%emt 0:05:45]} Qe5 {[%emt 0:10:01]} 17. Qe3 {[%emt 0:02:32]} Kg7 {[%emt 0:02:42]} 18. f4 {[%emt 0:00:21]} Qc7 {[%emt 0:01:08]} 19. Kh1 {[%emt 0:02:41]} Ng8 {[%emt 0:04:47]} 20. Rad1 {[%emt 0:02:00]} Rb8 {[%emt 0:02:25]} 21. e5 {[%emt 0:01:40]} Rb5 {[%emt 0:05:31]} 22. exf6+ {[%emt 0:01:36]} Kxf6 {[%emt 0:00:20]} 23. Qd4+ {[%emt 0:02:00]} Kf7 {[%emt 0:00:23]} 24. Nc5 {[%emt 0:09:28]} d5 {[%emt 0:05:54]} 25. Re5 {[%emt 0:05:13]} Qb6 {[%emt 0:02:05]} 26. Nb3 {[%emt 0:01:19]} Qxd4 {[%emt 0:00:33]} 27. Nxd4 {[%emt 0:00:17]} Rc5 {[%emt 0:00:08]} 28. Rd3 {[%emt 0:00:58]} Nf6 {[%emt 0:00:44]} 29. Nb3 {[%emt 0:02:43]} Rc4 {[%emt 0:01:13]} 30. Nd2 {[%emt 0:11:24]} Rxf4 {[%emt 0:01:56]} 31. Rf3 {[%emt 0:00:34]} Ra4 {[%emt 0:05:57]} 32. h3 {[%emt 0:06:00]} Rxa2 {[%emt 0:03:21]} 33. Nb3 {[%emt 0:00:09]} Bf5 {[%emt 0:01:09]} 34. Nc5 {[%emt 0:05:02]} Ra5 {[%emt 0:03:30]} 35. Nb7 {[%emt 0:02:45]} Ra1+ {[%emt 0:01:22]} 36. Kh2 {[%emt 0:00:16]} Nd7 {[%emt 0:01:57]} 37. Nd6+ {[%emt 0:00:40]} Kg7 {[%emt 0:02:37]} 38. Nxf5+ {[%emt 0:00:51]} gxf5 {[%emt 0:00:06]} 39. Re7+ {[%emt 0:00:21]} Kg6 {[%emt 0:00:34]} 40. Rxd7 {[%emt 0:00:10]} Ra6 {[%emt 0:00:32]} 41. Rd6+ {[%emt 0:00:53]} Kg5 {[%emt 0:00:07]} 42. Kg3 {[%emt 0:00:16]} 1-0

[Event "XVI Memorial Lezcano Montalvo 2024"]
[Site "Gran Canaria"]
[Date "2024.03.30"]
[Round "8.41"]
[White "Martinez Correa, Rafael"]
[Black "Grube, Kurt"]
[Result "1/2-1/2"]
[ECO "B50"]
[WhiteElo "1597"]
[BlackElo "1773"]
[Annotator "NA RC"]
[PlyCount "102"]
[EventDate "2024.03.23"]
[EventType "swiss"]
[EventCountry "ESP"]
[SourceTitle "playchess.com"]
[Source "ChessBase"]
[SourceQuality "1"]
[TimeControl "5400+30"]

1. e4 {[%emt 0:00:02]} c5 {[%emt 0:00:05]} 2. Nf3 {[%emt 0:00:05]} Nc6 {[%emt 0:00:10]} 3. Be2 {[%emt 0:00:10]} d6 {[%emt 0:01:12]} 4. c3 {[%emt 0:00:25]} Nf6 {[%emt 0:00:19]} 5. d4 {[%emt 0:00:19]} cxd4 {[%emt 0:03:43]} 6. cxd4 {[%emt 0:00:07]} e6 {[%emt 0:03:32]} 7. Nc3 {[%emt 0:01:22]} Be7 {[%emt 0:01:35]} 8. O-O {[%emt 0:02:25]} O-O {[%emt 0:00:47]} 9. h3 {[%emt 0:00:50]} a6 {[%emt 0:03:55]} 10. a4 {[%emt 0:00:16]} h6 {[%emt 0:01:23]} 11. Be3 {[%emt 0:00:38]} Re8 {[%emt 0:02:51]} 12. Qd2 {[%emt 0:04:02]} Bf8 {[%emt 0:03:33]} 13. Rfd1 {[%emt 0:02:43]} Qc7 {[%emt 0:09:08]} 14. Rac1 {[%emt 0:00:09]} Qe7 {[%emt 0:06:32]} 15. Bf1 {[%emt 0:02:46]} Bd7 {[%emt 0:09:17]} 16. e5 {[%emt 0:01:08]} Nh7 {[%emt 0:07:34]} 17. Ne4 {[%emt 0:03:01]} d5 {[%emt 0:04:52]} 18. Nd6 {[%emt 0:01:58]} Reb8 {[%emt 0:00:27]} 19. Bd3 {[%emt 0:02:31]} f5 {[%emt 0:04:11]} 20. Qc2 {[%emt 0:04:17]} Nb4 {[%emt 0:01:52]} 21. Qb3 {[%emt 0:01:12]} Nxd3 {[%emt 0:00:47]} 22. Rxd3 {[%emt 0:00:40]} Bc6 {[%emt 0:01:23]} 23. Bd2 {[%emt 0:02:24]} Qd7 {[%emt 0:01:30]} 24. Bb4 {[%emt 0:00:47]} Bxa4 {[%emt 0:00:54]} 25. Qa3 {[%emt 0:01:05]} Bc6 {[%emt 0:01:54]} 26. Qb3 {[%emt 0:03:13]} Ba4 {[%emt 0:03:03]} 27. Qc3 {[%emt 0:01:41]} Bxd6 {[%emt 0:01:18]} 28. Bxd6 {[%emt 0:00:50]} Rc8 {[%emt 0:00:58]} 29. Qd2 {[%emt 0:00:29]} Rxc1+ {[%emt 0:00:23]} 30. Qxc1 {[%emt 0:00:06]} Rc8 {[%emt 0:00:57]} 31. Rc3 {[%emt 0:00:07]} Bc6 {[%emt 0:01:27]} 32. Qc2 {[%emt 0:05:06]} g5 {[%emt 0:04:23]} 33. Qd1 {[%emt 0:01:10]} Nf6 {[%emt 0:00:49]} 34. exf6 {[%emt 0:00:56]} Qxd6 {[%emt 0:00:08]} 35. Ne5 {[%emt 0:00:13]} Rf8 {[%emt 0:02:25]} 36. f7+ {[%emt 0:00:46]} Rxf7 {[%emt 0:00:35]} 37. Nxf7 {[%emt 0:00:20]} Kxf7 {[%emt 0:00:01]} 38. Qh5+ {[%emt 0:00:15]} Kg7 {[%emt 0:00:12]} 39. h4 {[%emt 0:00:41]} g4 {[%emt 0:03:21]} 40. f3 {[%emt 0:03:26]} Qe7 {[%emt 0:02:49]} 41. Rxc6 {[%emt 0:00:31]} bxc6 {[%emt 0:00:11]} 42. fxg4 {[%emt 0:00:09]} fxg4 {[%emt 0:02:09]} 43. Qxg4+ {[%emt 0:00:12]} Kh7 {[%emt 0:00:13]} 44. Qg3 {[%emt 0:00:46]} Qg7 {[%emt 0:03:02]} 45. Qd3+ {[%emt 0:00:28]} Kh8 {[%emt 0:01:05]} 46. Qe3 {[%emt 0:01:00]} Qf6 {[%emt 0:01:26]} 47. g3 {[%emt 0:01:14]} Kg7 {[%emt 0:00:17]} 48. Kh2 {[%emt 0:01:26]} Qg6 {[%emt 0:02:21]} 49. Qe5+ {[%emt 0:01:34]} Qf6 {[%emt 0:00:32]} 50. Qe3 {[%emt 0:00:39]} Qg6 {[%emt 0:00:27]} 51. Qe5+ {[%emt 0:00:07]} Qf6 {[%emt 0:08:02]} 1/2-1/2

[Event "XVI Memorial Lezcano Montalvo 2024"]
[Site "Gran Canaria"]
[Date "2024.03.30"]
[Round "8.42"]
[White "Lorenzo Merino, Hector"]
[Black "Lorenzo Ventura, Abel"]
[Result "1-0"]
[ECO "D11"]
[WhiteElo "1586"]
[BlackElo "1772"]
[Annotator "NA RC COMBH"]
[PlyCount "93"]
[EventDate "2024.03.23"]
[EventType "swiss"]
[EventCountry "ESP"]
[SourceTitle "playchess.com"]
[Source "ChessBase"]
[SourceQuality "1"]
[TimeControl "5400+30"]

1. d4 {[%emt 0:00:06]} Nf6 {[%emt 0:00:17]} 2. e3 {[%emt 0:00:03]} d5 {[%emt 0:01:44]} 3. Nf3 {[%emt 0:01:01]} Bg4 {[%emt 0:03:45]} 4. c4 {[%emt 0:00:11]} c6 {[%emt 0:04:50]} 5. Qb3 {[%emt 0:13:03]} Qb6 {[%emt 0:03:10]} 6. Nbd2 {[%emt 0:00:34]} e6 {[%emt 0:00:37]} 7. Ne5 {[%emt 0:01:02]} Bf5 {[%emt 0:01:14]} 8. Be2 {[%emt 0:01:01]} h6 {[%emt 0:01:27]} 9. O-O {[%emt 0:00:46]} Nbd7 {[%emt 0:00:23]} 10. Ndf3 {[%emt 0:02:51]} Be7 {[%emt 0:05:17]} 11. Qd1 {[%emt 0:01:30]} O-O {[%emt 0:00:37]} 12. b3 {[%emt 0:02:05]} a5 {[%emt 0:03:39]} 13. c5 {[%emt 0:04:09]} Qc7 {[%emt 0:00:32]} 14. Bd2 {[%emt 0:01:06]} Nxe5 {[%emt 0:18:28]} 15. Nxe5 {[%emt 0:00:11]} Nd7 {[%emt 0:05:24]} 16. Nxd7 {[%emt 0:03:17]} Qxd7 {[%emt 0:00:07]} 17. h3 {[%emt 0:03:08]} Bd8 {[%emt 0:02:16]} 18. Bg4 {[%emt 0:01:12]} Bh7 {[%emt 0:00:00]} 19. Bc3 Bc7 {[%emt 0:46:13]} 20. Rc1 {[%emt 1:03:14]} Qe7 {[%emt 0:00:00]} 21. f4 f6 {[%emt 0:00:00]} 22. Qd2 a4 {[%emt 0:01:30]} 23. b4 {[%emt 0:01:30]} e5 {[%emt 0:00:30]} 24. Rfe1 {[%emt 0:00:30]} Bg6 {[%emt 0:00:00]} 25. Be2 {[%emt 0:00:00]} exf4 {[%emt 0:00:00]} 26. exf4 {[%emt 0:01:00]} Qd7 {[%emt 0:00:00]} 27. Bg4 {[%emt 0:00:00]} Bf5 {[%emt 0:00:00]} 28. Bf3 {[%emt 0:00:00]} Rfe8 {[%emt 0:00:00]} 29. g4 {[%emt 0:00:00]} Be4 {[%emt 0:00:00]} 30. Bd1 {[%emt 0:00:00]} Re7 {[%emt 0:00:00]} 31. Qf2 {[%emt 0:00:00]} Ree8 {[%emt 0:00:00]} 32. f5 {[%emt 0:00:00]} Bb8 {[%emt 0:00:34]} 33. Bd2 {[%emt 0:00:00]} Qc7 {[%emt 0:00:24]} 34. Rc3 {[%emt 0:00:00]} b5 {[%emt 0:01:25]} 35. cxb6 {[%emt 0:00:00]} Qxb6 {[%emt 0:00:01]} 36. Ra3 {[%emt 0:00:00]} Bd6 {[%emt 0:01:59]} 37. Rxa4 {[%emt 0:00:00]} Rxa4 {[%emt 0:00:34]} 38. Bxa4 {[%emt 0:00:00]} Ra8 {[%emt 0:00:56]} 39. Bb3 {[%emt 0:00:00]} Bxb4 {[%emt 0:00:20]} 40. Bxb4 {[%emt 0:00:00]} Qxb4 {[%emt 0:00:05]} 41. Rxe4 {[%emt 0:00:00]} Kh7 {[%emt 0:01:15]} 42. Re6 {[%emt 0:00:00]} Qc3 {[%emt 0:00:20]} 43. Kg2 {[%emt 0:00:00]} Rc8 {[%emt 0:00:35]} 44. Re2 {[%emt 0:00:00]} Qb4 {[%emt 0:00:20]} 45. Rc2 {[%emt 0:00:00]} Re8 {[%emt 0:00:13]} 46. Qd2 {[%emt 0:00:00]} Qb5 {[%emt 0:00:30]} 47. Qf2 {[%emt 0:00:00]} 1-0

[Event "XVI Memorial Lezcano Montalvo 2024"]
[Site "Gran Canaria"]
[Date "2024.03.31"]
[Round "9.1"]
[White "Tutisani, Noe"]
[Black "Larino Nieto, David"]
[Result "1-0"]
[ECO "B07"]
[WhiteElo "2405"]
[BlackElo "2365"]
[Annotator "TA"]
[PlyCount "83"]
[EventDate "2024.03.23"]
[EventType "swiss"]
[EventCountry "ESP"]
[SourceTitle "playchess.com"]
[Source "ChessBase"]
[SourceQuality "1"]
[TimeControl "5400+30"]

{[%evp 31,83,313,302,173,216,190,207,168,166,67,54,0,0,0,0,0,0,0,155,143,149,156,140,149,144,0,0,0,0,0,0,0,8,5,1028,1010,1028,996,1060,974,1053,1052,6590,6327,29982,29983,29983,29984,29984,29985,29989,29990,29990,1215]} 1. e4 {[%emt 0:00:03]} d6 {[%emt 0:04:15]} 2. d4 {[%emt 0:00:06]} Nf6 {[%emt 0:00:06]} 3. Nc3 {[%emt 0:00:06]} e6 {[%emt 0:00:04]} 4. Be3 {[%emt 0:00:08]} Be7 {[%emt 0:00:07]} 5. Qf3 $146 {[%emt 0:00:03]} ({Predecessor:} 5. f3 a6 6. Qd2 b5 7. O-O-O b4 8. Nce2 d5 9. e5 Nfd7 10. f4 c5 11. dxc5 Nxc5 {0-1 Aalto,P (2251)-Keinanen,T (2501) FIN-ch Helsinki 2023 (7)}) 5... Nc6 {[%emt 0:01:30]} 6. h3 {[%emt 0:01:04] B07: Pirc Defence: Miscellaneous Systems.} O-O {[%emt 0:01:01]} 7. O-O-O {[%emt 0:01:11]} d5 {[%emt 0:01:04]} 8. e5 {[%emt 0:03:30]} Nd7 {[%emt 0:04:39]} 9. Qh5 {[%emt 0:03:58]} a6 {[%emt 0:07:18]} 10. Nf3 {[%emt 0:04:30]} f6 {[%emt 0:10:21]} 11. Bd3 {[%emt 0:06:50]} f5 {[%emt 0:02:17]} 12. g4 {[%emt 0:06:18]} g6 {[%emt 0:11:24]} 13. Qh6 {[%emt 0:00:06]} Nb4 {[%emt 0:00:47]} 14. Be2 {[%emt 0:08:44]} c5 {[%emt 0:05:30]} 15. h4 {[%emt 0:10:19]} f4 {[%emt 0:11:36]} 16. Bxf4 {[%emt 0:01:14]} cxd4 {[%emt 0:01:44] [#]} 17. h5 {[%emt 0:02:13]} (17. Nxd4 $142 $1 Rf7 (17... Nc5 18. Nf3) 18. Bg3 (18. Nxe6 Qb6 $18)) 17... g5 $18 {[%emt 0:04:18]} 18. Nxg5 $1 {[%emt 0:11:29]} (18. Bxg5 dxc3 19. Kb1 (19. Qxe6+ Rf7 $17) (19. bxc3 $2 Nxa2+ 20. Kd2 Nc5 $19) 19... Nc5 $19 (19... Rxf3 20. Bxe7 Qxe7 21. Bxf3 $17)) (18. Qxe6+ Kh8 19. Rxd4 (19. Nxd5 $2 Nxd5 20. Qxd5 Rxf4 $19) 19... Rxf4 20. Rxf4 (20. Nxd5 $2 Nxd5 21. Qxd5 Qf8 $19) 20... gxf4 $17) (18. Rxd4 Rxf4 19. Rxf4 (19. Qxe6+ Kh8 $15) 19... gxf4 $11) 18... Bxg5 {[%emt 0:01:46]} 19. Bxg5 {[%emt 0:03:07]} Qb6 {[%emt 0:00:16]} 20. Na4 {[%emt 0:01:45]} (20. Be3 $18 dxe3 21. g5 (21. fxe3 Qc5 $14)) 20... Qc6 $14 {[%emt 0:04:58] [#]} 21. Bd3 {[%emt 0:00:08]} (21. Rd2 $1 $14 Rf7 22. Kb1 Qxa4 23. a3 (23. Rxd4 $2 Qxa2+ 24. Kc1 Qa1+ 25. Kd2 Qxb2 $19)) 21... Nxd3+ $11 {[%emt 0:02:53]} 22. Rxd3 {[%emt 0:00:03]} Nxe5 {[%emt 0:07:57]} 23. Rxd4 {[%emt 0:00:09]} Nf7 $1 {[%emt 0:03:55]} 24. Qf6 {[%emt 0:00:02]} e5 $2 {[%emt 0:00:11]} ({Black should play} 24... Nd6 $1 $11 25. Qh6 Nf7) 25. Rb4 $16 {[%emt 0:00:02]} Bd7 {[%emt 0:02:34]} 26. Nb6 {[%emt 0:01:06]} a5 {[%emt 0:01:53]} 27. Rb3 {[%emt 0:01:58]} d4 {[%emt 0:05:04]} 28. Re1 {[%emt 0:04:30]} (28. Rg1 $16 Ra6 29. Qxc6 Bxc6 30. Bf6) 28... Nd6 $1 $11 {[%emt 0:01:50]} 29. Qxe5 {[%emt 0:02:52]} Rae8 {[%emt 0:00:01]} 30. Be7 {[%emt 0:00:17]} (30. Qxa5 $2 Rxe1+ (30... d3 $2 31. Rxd3 Rxf2 32. Rxe8+ Nxe8 33. Bd2 $18) 31. Qxe1 Rxf2 $19) 30... Rxf2 {[%emt 0:00:17]} 31. Qd5+ $1 {[%emt 0:14:57]} (31. Qxd6 $2 Qxc2#) (31. Qg5+ Kf7 32. c3 d3 33. Nxd7 Nc4 $19 (33... d2+ $2 34. Qxd2 Rxd2 35. Ne5+ Kxe7 36. Nxc6+ Kd7 37. Kxd2 $18) (33... d2+ $2 34. Qxd2 Rxd2 35. Ne5+ Kg8 36. Nxc6 $18)) 31... Nf7 {[%emt 0:00:01]} 32. c4 {[%emt 0:03:22]} (32. Qxd7 $2 Qxc2#) 32... Qf6 $2 {[%emt 0:00:05][%mdl 8192]} (32... dxc3 $11 33. Qxc6 (33. Qxd7 $2 cxb2+ 34. Kd1 Qc2#) (33. bxc3 Bxg4 34. Qxc6 bxc6 $11) 33... Bxc6) 33. Qxd7 $18 {[%emt 0:01:11]} (33. Nxd7 $2 Qf4+ 34. Kb1 Rxe7 $19) 33... Rxe7 {[%emt 0:03:33]} 34. Qxe7 {[%emt 0:02:28]} (34. Rxe7 Rf1+ 35. Kc2 Qf2+ 36. Kd3 Rd1+ 37. Ke4 Qg2+ 38. Rf3 Re1+ 39. Kd5 (39. Kxd4 $2 Qxb2+ 40. Kd3 Rd1+ 41. Ke4 Ng5+ 42. Kf4 Rxd7 $19) 39... Qxf3+ 40. Kc5 Rxe7 41. Qxe7 Qc6+ (41... Qxg4 42. Qe8+ Kg7 43. h6+ Nxh6 44. Qe5+ Kg6 45. Nd5 $11) 42. Kxd4 Qxb6+ 43. Kc3 Qc6 $19) 34... d3 {[%emt 0:00:01]} 35. Qe8+ {[%emt 0:01:09]} (35. Qxb7 {leads to mate.} d2+ 36. Kd1 dxe1=Q+ (36... dxe1=B 37. Qa8+ Kg7 38. Qf8+ Kxf8 39. Nd7+ Kg7 40. Nxf6 $17) 37. Kxe1 Rf1+ (37... Rxb2 38. Qa8+ Kg7 39. Rxb2 $14) 38. Kd2 Qf2+ 39. Kc3 Qe3+ 40. Kc2 Rc1#) 35... Kg7 {[%emt 0:00:03]} 36. Kb1 {[%emt 0:00:48]} Ne5 {[%emt 0:02:23]} 37. h6+ {[%emt 0:03:15]} Kxh6 {[%emt 0:00:09]} 38. Nd5 {[%emt 0:00:18]} (38. Qxe5 $2 {too greedy.} Qxe5 39. Rh1+ Kg6 $19) 38... Rf1 {[%emt 0:00:50]} 39. Qh5+ {[%emt 0:00:05]} (39. Rxb7 $2 Rxe1#) 39... Kg7 {[%emt 0:00:08]} 40. Rxb7+ {[%emt 0:00:02]} Kf8 {[%emt 0:00:33]} 41. Rb8+ {[%emt 0:00:02]} (41. Qxh7 $2 Rxe1#) 41... Kg7 {[%emt 0:00:05]} 42. Rg8+ {[%emt 0:00:01]} (42. Nxf6 $2 Rxe1#) 1-0

[Event "XVI Memorial Lezcano Montalvo 2024"]
[Site "Gran Canaria"]
[Date "2024.03.31"]
[Round "9.2"]
[White "Dvirnyy, Danyyil"]
[Black "Perez Guerra, Raul"]
[Result "1-0"]
[ECO "D37"]
[WhiteElo "2482"]
[BlackElo "2250"]
[Annotator "TA"]
[PlyCount "61"]
[EventDate "2024.03.23"]
[EventType "swiss"]
[EventCountry "ESP"]
[SourceTitle "playchess.com"]
[Source "ChessBase"]
[SourceQuality "1"]
[TimeControl "5400+30"]

{[%evp 17,61,15,0,10,13,5,24,8,24,19,19,0,0,0,0,0,0,0,0,0,0,0,0,0,380,369,419,391,797,789,790,743,1041,1020,1004,964,1475,1454,2510,1031,29987,29988,29991,29992,29994,29989]} 1. Nf3 {[%emt 0:00:03]} Nf6 {[%emt 0:00:08]} 2. c4 {[%emt 0:01:23]} e6 {[%emt 0:00:15]} 3. Nc3 {[%emt 0:00:28]} d5 {[%emt 0:00:36]} 4. d4 {[%emt 0:00:15]} Be7 {[%emt 0:00:35]} 5. Bf4 {[%emt 0:05:52]} O-O {[%emt 0:01:13]} 6. e3 {[%emt 0:01:36]} b6 {[%emt 0:05:29]} 7. cxd5 {[%emt 0:01:11]} Nxd5 {[%emt 0:00:42]} 8. Nxd5 {[%emt 0:00:08]} exd5 {[%emt 0:00:07]} 9. Bd3 {[%emt 0:04:30]} c5 {[%emt 0:05:04]} 10. Ne5 {[%emt 0:02:09]} cxd4 {[%emt 0:08:28]} 11. exd4 {[%emt 0:07:27]} Bb4+ {[%emt 0:00:11]} 12. Kf1 {[%emt 0:00:32] White has an edge.} Qf6 {[%emt 0:16:22]} 13. Bg3 $40 {[%emt 0:11:13][%cal Bf4g3,Bg3d6,Bd6e5][%mdl 160] White has some attack.} Bd6 {[%emt 0:09:41]} 14. Qc2 {[%emt 0:05:50]} h6 {[%emt 0:02:02]} 15. Rc1 {[%emt 0:04:48][%cal Ba1c1,Bc1c8,Bc8c7][%mdl 32] [#] Black must now prevent Qxc8.} Be6 {[%emt 0:04:39]} 16. Ng6 {[%emt 0:03:15] Dodges Nd7. Hoping for Be5.} fxg6 {[%emt 0:08:19]} (16... Rc8 17. Qxc8+ Bxc8 18. Rxc8+) 17. Bxd6 {[%emt 0:00:08]} Rc8 {[%emt 0:00:01]} 18. Qxc8+ {[%emt 0:02:40]} Bxc8 {[%emt 0:00:03]} 19. Rxc8+ {[%emt 0:00:09]} Kh7 {[%emt 0:00:04]} 20. Be5 {[%emt 0:00:19] Some like it hot} (20. Bxb8 $2 Qxd4 21. Be2 Qe4 $19) 20... Qg5 {[%emt 0:00:32][%mdl 8192] Black is weak on the dark squares} (20... Qe6 $11 {and Black has nothing to worry.} 21. Rf8 (21. Rxb8 Rxb8 22. Bxb8 Qc8 $15) 21... Nd7 22. Rxa8 Qc6) 21. Rc7 $18 {[%emt 0:02:37]} (21. Rxb8 $2 Qd2 (21... Rxb8 $2 22. f4 $19) 22. Bxg6+ Kxg6 $19) 21... Kg8 {[%emt 0:15:04]} 22. g3 {[%emt 0:04:26]} (22. Rxg7+ Kf8) 22... Qd2 $2 {[%emt 0:06:25]} (22... Qg4 23. Rxg7+ (23. Bxg7 $2 Qf3 $19) 23... Kf8) 23. Bxg6 {[%emt 0:01:59][%cal Rc7c8,Bd3g6,Bg6f7,Bf7d5,Bd5e4][%mdl 32] [#]} Nc6 {[%emt 0:00:07]} 24. Bf7+ {[%emt 0:02:48] This pair of bishops is nice.} Kh8 {[%emt 0:03:07][%cal Bg8h8,Bh8h7,Bh7h6][%mdl 32]} 25. Rxc6 {[%emt 0:02:41]} Rf8 {[%emt 0:00:15]} 26. Rc7 {[%emt 0:01:21]} (26. Bxd5 $2 Qxf2#) 26... Qd3+ {[%emt 0:00:33]} 27. Kg2 {[%emt 0:00:42]} Kh7 {[%emt 0:08:56]} 28. Re1 {[%emt 0:01:22]} ({Not} 28. Rxa7 Qe4+ 29. f3 Qc2+ 30. Kh3 (30. Kf1 Qd3+ 31. Kg2 Qc2+ 32. Kf1 Qd3+ 33. Kg2 Qc2+ $11) 30... Qf5+ 31. Kg2 Qc2+ (31... Rxf7 32. Rxf7 Qxf7 33. Rc1 $16) 32. Kf1 Qd1+ 33. Kg2 Qc2+ $11) 28... h5 {[%emt 0:02:22]} 29. Bxd5 {[%emt 0:03:13] White mates.} ({Less strong is} 29. Rxa7 Qf5 $16) 29... Qd2 {[%emt 0:00:37]} 30. Be4+ {[%emt 0:00:18]} Kh6 {[%emt 0:00:40]} 31. Rc6+ {[%emt 0:00:37] Weighted Error Value: White=0.02 (flawless) /Black=0.66.  Loses game:     	---       	Black=1      Mistake:       	---       	Black=1      OK:         	White=5     	Black=7      Best:        	White=1     	Black=1} 1-0

[Event "XVI Memorial Lezcano Montalvo 2024"]
[Site "Gran Canaria"]
[Date "2024.03.31"]
[Round "9.3"]
[White "Fiorito, Fabian"]
[Black "Kovchan, Alexander"]
[Result "1-0"]
[ECO "A15"]
[WhiteElo "2251"]
[BlackElo "2477"]
[Annotator "TA"]
[PlyCount "97"]
[EventDate "2024.03.23"]
[EventType "swiss"]
[EventCountry "ESP"]
[SourceTitle "playchess.com"]
[Source "ChessBase"]
[SourceQuality "1"]
[TimeControl "5400+30"]

{[%evp 36,97,0,0,0,0,48,46,90,90,245,232,218,101,94,86,67,63,60,61,113,98,89,23,37,0,7,-135,-137,-287,0,0,0,6,40,37,52,37,35,0,0,0,0,0,0,0,0,0,1161,1099,29964,29962,6714,6331,29968,29969,29973,29974,29980,29981,29988,29989,29989,29989]} 1. Nf3 {[%emt 0:00:02]} Nf6 {[%emt 0:02:36]} 2. c4 {[%emt 0:00:06]} g6 {[%emt 0:00:15]} 3. b3 {[%emt 0:01:33]} Bg7 {[%emt 0:00:48]} 4. Bb2 {[%emt 0:00:05]} O-O {[%emt 0:00:07]} 5. g3 {[%emt 0:00:04]} d6 {[%emt 0:00:07]} 6. Bg2 {[%emt 0:00:40]} e5 {[%emt 0:00:09]} 7. d3 {[%emt 0:00:05]} a5 {[%emt 0:00:29]} 8. a3 {[%emt 0:00:18]} Na6 {[%emt 0:00:55]} 9. O-O {[%emt 0:01:17]} Re8 {[%emt 0:00:09]} 10. Nbd2 {[%emt 0:02:38]} Bd7 {[%emt 0:00:54]} 11. Qc2 {[%emt 0:01:33]} c5 {[%emt 0:00:43]} 12. Ng5 {[%emt 0:06:48]} Bc6 {[%emt 0:01:25]} 13. Nge4 {[%emt 0:01:09]} Nh5 {[%emt 0:08:26]} 14. e3 {[%emt 0:00:47]} Nc7 {[%emt 0:05:05]} 15. Rae1 {[%emt 0:01:59]} f5 {[%emt 0:06:28]} 16. Nc3 {[%emt 0:00:13]} Nf6 {[%emt 0:00:38]} 17. a4 {[%emt 0:06:22]} Bxg2 {[%emt 0:13:07]} 18. Kxg2 {[%emt 0:00:50]} Qd7 {[%emt 0:00:40]} 19. e4 {[%emt 0:03:02]} f4 {[%emt 0:01:50]} 20. Nd5 {[%emt 0:02:09]} Ncxd5 {[%emt 0:02:09]} (20... Qf7 $11 {is superior.}) 21. cxd5 $14 {[%emt 0:00:31]} g5 {[%emt 0:04:55]} 22. f3 {[%emt 0:00:35]} g4 $2 {[%emt 0:04:37]} (22... Nh5 $16) 23. Nc4 $18 {[%emt 0:01:01]} Rad8 {[%emt 0:03:35]} 24. fxg4 {[%emt 0:02:15]} (24. Nxa5 $6 Kh8 $16) (24. gxf4 $18 {and White stays clearly on top.} exf4 25. fxg4 (25. Nxa5 gxf3+ 26. Rxf3 Qg4+ 27. Kf2 Qh5 $15)) 24... Qxg4 $16 {[%emt 0:01:13]} 25. Qe2 {[%emt 0:01:36]} (25. Nxa5 $6 fxg3 26. Qe2 Qg6 $11 (26... gxh2+ 27. Qxg4 Nxg4 28. Nc4 $11)) 25... Qg6 {[%emt 0:00:14]} 26. Rf3 {[%emt 0:26:30]} (26. Nxa5 fxg3 27. Bc1 (27. Nxb7 Rd7 $17) (27. hxg3 Nh5 $17) 27... Nh5 $11 (27... gxh2+ 28. Kxh2 Ng4+ 29. Kh3 $16)) 26... Nh5 {[%emt 0:01:10]} 27. Bc1 {[%emt 0:02:16]} (27. Nxa5 fxg3 28. Bc1 Rf8 29. Rxg3 (29. Nxb7 $2 Rxf3 30. Qxf3 Rf8 $19) 29... Nxg3 30. hxg3 Rf7 $11) 27... Bh6 {[%emt 0:03:34]} (27... Rf8 $14) 28. g4 $16 {[%emt 0:03:24]} (28. Nxa5 Kh8 29. Qd2 (29. Nxb7 $2 Rd7 $17) 29... Rg8 $15) 28... Kh8 {[%emt 0:02:54]} 29. h3 {[%emt 0:08:42]} (29. Nxa5 Qxg4+ 30. Kh1 Rg8 $17) ({Better is} 29. Rh3 $16 Nf6 30. Rg1 (30. Rh4 Rf8 $11)) 29... Ng3 {[%emt 0:01:07]} 30. Qd2 {[%emt 0:03:56]} (30. Rxg3 {seems wilder.} fxg3 31. Bxh6 Qxh6 32. Qe3) 30... Bg5 {[%emt 0:01:30]} 31. Qxa5 {[%emt 0:02:38]} (31. Rxg3 $11 f3+ 32. Rxf3 Bxd2 33. Bxd2) 31... h5 $17 {[%emt 0:01:08]} 32. Qc7 {[%emt 0:03:06] [#]} (32. Qc3 $17 {is a better defense.} Kh7 33. Rxg3) 32... hxg4 $2 {[%emt 0:02:42]} (32... Bh4 $1 $19 33. Bb2 (33. Qxb7 $2 hxg4 34. hxg4 Nh5 $19) 33... hxg4 34. hxg4 (34. Rxf4 $2 gxh3+ 35. Kxh3 Nh5 $19) 34... Nxe4 (34... Qxg4 $2 35. Nxe5 dxe5 36. Bxe5+ Kg8 37. Rxf4 $18) 35. Rxf4 Bxe1 36. dxe4 Kg8 37. Bxe5 dxe5 38. Nxe5 Qg7 39. Qxg7+ Kxg7) 33. hxg4 {[%emt 0:00:03]} Bh4 {[%emt 0:00:19]} 34. Rxg3 $1 {[%emt 0:05:16]} fxg3 {[%emt 0:05:56]} (34... Qg7 $5 35. Qxg7+ Kxg7 $16) 35. Ne3 {[%emt 0:02:30]} Rf8 {[%emt 0:00:22]} 36. Nf5 $1 {[%emt 0:04:00]} Rf7 $1 {[%emt 0:11:11]} (36... Qxg4 $2 37. Bh6 Rg8 38. Qf7 $18) 37. Qxf7 {[%emt 0:06:52]} (37. Nxh4 $5 Qf6 (37... Rxc7 $2 38. Nxg6+ Kg8 39. Kxg3 $18) 38. Qxf7 (38. Ng6+ $2 Kg7 $19) 38... Qxf7 39. Nf5 $11) 37... Qxf7 {[%emt 0:00:05]} 38. Rh1 $1 {[%emt 0:00:01]} Qc7 $1 {[%emt 0:00:51]} (38... Qh7 $2 39. Rxh4 $18 (39. Nxh4 Kg8 $11) (39. Nxh4 Qc7 $11)) 39. Rxh4+ {[%emt 0:00:16]} Kg8 {[%emt 0:00:05]} 40. Rh6 {[%emt 0:02:25]} (40. Nxg3 $2 Qb6 41. Nf5 Qxb3 42. Nh6+ Kf8 $19) (40. Kxg3 Qa5 41. Nh6+ Kf8 $17) 40... Rd7 {[%emt 0:02:22]} 41. Rg6+ {[%emt 0:00:49]} Kf7 $2 {[%emt 0:00:52][%mdl 8192] [#]} (41... Kh7 $11 42. Rh6+ Kg8) 42. Re6 $1 $18 {[%emt 0:00:20]} Qa5 {[%emt 0:00:50]} 43. g5 $1 {[%emt 0:00:24]} Kg8 {[%emt 0:05:12]} 44. g6 $1 {[%emt 0:00:10]} (44. Rxd6 $2 Rxd6 45. Nxd6 Qe1 $19) 44... Qd8 {[%emt 0:03:38]} 45. Bg5 {[%emt 0:00:22]} Qa8 {[%emt 0:00:37]} 46. Bf6 {[%emt 0:00:40]} b5 {[%emt 0:00:36]} 47. Re7 {[%emt 0:00:23]} Qf8 {[%emt 0:01:16]} 48. Rxd7 {[%emt 0:00:53]} Qxf6 {[%emt 0:00:03]} 49. Rb7 {[%emt 0:00:26]} ({And not} 49. Nxg3 Qg5 $11 (49... Qxg6 50. axb5 Qe8 51. Rb7 $11) (49... bxa4 50. bxa4 Qxg6 51. a5 $11)) 1-0